bitfinex-derivatives/quotes_ETHF0:USTF0_20250830
["timestamp","ask_amount","ask_price","bid_price","bid_amount"]
[1756530503247,0.4915,4364.9,4364.8,0.5038]
[1756530504144,0.2904,4364.9,4364.8,0.5038]
[1756530504351,0.4915,4364.9,4364.8,0.5038]
[1756530505256,0.4915,4364.9,4364.8,0.204]
[1756530506457,0.4915,4364.7,4364.6,0.71216]
[1756530506660,0.4915,4364.7,4364.6,0.91616]
[1756530506852,0.4915,4364.7,4364.6,1.14716]
[1756530507156,3.2078,4365.5,4364.9,0.91613]
[1756530507157,0.2011,4365.0,4364.9,0.91613]
[1756530507456,0.4915,4365.0,4364.9,0.91613]
[1756530509057,0.2011,4365.0,4364.9,0.91613]
[1756530509354,0.4915,4365.0,4364.9,0.91613]
[1756530509555,0.2011,4365.0,4364.9,0.91613]
[1756530509750,0.4915,4365.0,4364.9,0.5038]
[1756530509953,0.2904,4364.9,4364.7,0.2998]
[1756530510152,0.2011,4364.9,4364.8,0.435]
[1756530510353,0.4915,4364.9,4364.8,0.7348]
[1756530512864,0.4915,4365.4,4365.3,0.204]
[1756530513061,0.4915,4365.4,4365.3,0.5038]
[1756530517476,0.4915,4365.4,4365.3,0.9161]
[1756530517773,0.2011,4365.4,4365.3,0.9161]
[1756530518180,0.2902,4365.7,4365.3,0.5038]
[1756530518476,0.4892,4365.5,4365.4,0.4958]
[1756530519673,2.0902,4366.2,4366.0,0.3051]
[1756530519880,1.999,4366.2,4366.1,0.1907]
[1756530520177,1.999,4366.2,4366.1,0.4958]
[1756530520377,2.2892,4366.2,4366.1,0.4958]
[1756530521177,2.2892,4366.2,4366.1,0.7268]
[1756530522071,2.2892,4366.2,4366.1,0.4958]
[1756530522374,2.2892,4366.2,4366.1,0.231]
[1756530523171,2.2892,4366.2,4365.9,0.3051]
[1756530523376,0.4892,4366.1,4366.0,0.7268]
[1756530526680,0.4892,4366.1,4366.0,0.4958]
[1756530526978,0.4892,4366.1,4366.0,0.7268]
[1756530527181,1.8,4366.2,4366.1,0.3051]
[1756530527373,2.2892,4366.2,4366.1,0.4958]
[1756530528180,2.2892,4366.2,4366.1,0.7268]
[1756530529981,2.2892,4366.2,4366.1,0.4958]
[1756530530183,2.2892,4366.2,4366.1,0.7268]
[1756530530877,0.199,4366.0,4365.6,3.2078]
[1756530531083,0.199,4365.7,4365.6,3.4388]
[1756530531278,0.4892,4365.7,4365.6,3.4388]
[1756530531679,0.4892,4365.7,4365.6,3.9346]
[1756530532579,0.4892,4365.7,4365.6,3.7036]
[1756530532779,0.4892,4365.7,4365.6,3.9346]
[1756530534084,0.4892,4365.7,4365.6,3.7036]
[1756530534291,0.4892,4365.7,4365.6,3.2078]
[1756530534584,0.4892,4365.7,4365.6,3.4388]
[1756530535183,0.4892,4365.7,4365.6,3.2078]
[1756530536383,0.4892,4365.7,4365.6,3.5129]
[1756530536686,0.4892,4365.7,4365.6,3.7036]
[1756530537484,0.4892,4366.1,4365.6,3.2078]
[1756530537782,0.4892,4365.8,4365.7,0.7268]
[1756530537984,0.4892,4365.8,4365.7,1.13906]
[1756530538685,0.4892,4365.8,4365.7,0.7268]
[1756530544485,0.4892,4366.1,4366.0,0.1907]
[1756530544686,0.4892,4366.1,4366.0,0.4958]
[1756530546895,1.8,4366.2,4366.1,0.90642]
[1756530547197,2.1049,4366.2,4366.1,4.34522]
[1756530547493,2.3063,4366.2,4366.1,4.34522]
[1756530548288,2.3063,4366.2,4366.1,3.933]
[1756530548696,2.3063,4366.2,4366.1,3.702]
[1756530548895,2.3063,4366.2,4366.1,3.933]
[1756530549397,1.8,4366.2,4366.1,3.933]
[1756530549997,2.1049,4366.2,4366.1,3.933]
[1756530550196,2.3063,4366.2,4366.1,3.933]
[1756530550495,1.8,4366.2,4366.1,8.16202999]
[1756530550798,1.8,4366.2,4366.1,7.933]
[1756530553588,0.3049,4367.1,4367.0,0.4942]
[1756530553898,0.5063,4367.1,4367.0,0.7252]
[1756530554099,0.2014,4367.1,4367.0,0.7252]
[1756530554402,0.5063,4367.1,4367.0,0.7252]
[1756530555100,3.7141,4368.2,4368.1,0.4942]
[1756530556001,0.5063,4368.2,4368.1,0.4942]
[1756530560102,0.5063,4368.2,4368.1,0.7252]
[1756530561201,0.2014,4368.2,4367.6,3.2078]
[1756530561408,0.5063,4367.7,4367.6,3.2078]
[1756530561603,0.5063,4367.7,4367.6,3.6406]
[1756530561802,0.5063,4367.7,4367.6,3.933]
[1756530562700,0.5063,4367.7,4367.6,4.34508]
[1756530564105,0.5063,4367.7,4367.6,3.61988]
[1756530564306,0.5063,4367.7,4367.6,3.85088]
[1756530564508,0.5063,4367.7,4367.6,3.6406]
[1756530565006,0.5063,4367.7,4367.6,3.933]
[1756530565200,0.5063,4367.7,4367.6,3.702]
[1756530565397,0.5063,4367.7,4367.6,3.933]
[1756530565805,0.2014,4367.7,4367.6,3.933]
[1756530566006,0.3049,4368.6,4367.8,0.2924]
[1756530566208,0.5063,4367.9,4367.8,0.7252]
[1756530566706,0.5063,4367.9,4367.8,0.4942]
[1756530566899,0.5063,4367.9,4367.8,0.7252]
[1756530568204,0.5063,4367.9,4367.8,0.4328]
[1756530568806,0.5063,4367.9,4367.8,0.7252]
[1756530569308,0.3049,4368.2,4367.9,0.41205]
[1756530569508,0.5063,4368.2,4368.1,0.4942]
[1756530570807,0.5063,4368.2,4368.1,0.90624]
[1756530572612,0.5063,4368.2,4368.1,0.4942]
[1756530577205,3.2078,4368.7,4368.2,0.41203]
[1756530577410,0.4981,4368.6,4368.5,0.4998]
[1756530578613,0.4981,4368.6,4368.2,0.70923]
[1756530578813,3.2078,4368.7,4368.3,0.2972]
[1756530579115,0.4981,4368.4,4368.3,0.4998]
[1756530583218,0.231,4369.0,4368.1,3.2078]
[1756530583219,0.7291,4369.0,4368.9,0.61456]
[1756530583416,0.7291,4369.0,4368.9,0.91176]
[1756530583913,0.4981,4369.0,4368.9,0.61456]
[1756530584118,0.4981,4369.0,4368.9,0.91176]
[1756530586911,0.4981,4369.0,4368.9,0.4998]
[1756530587423,0.4981,4369.0,4368.9,0.91176]
[1756530590525,0.1935,4369.3,4369.2,0.61452]
[1756530590822,0.1935,4369.5,4369.4,0.4119]
[1756530591021,0.4981,4369.5,4369.4,0.6145]
[1756530591727,0.3046,4369.5,4369.4,0.4998]
[1756530591931,0.4981,4369.5,4369.4,0.4998]
[1756530592227,0.4981,4369.5,4369.3,0.231]
[1756530592228,0.4981,4369.5,4369.1,0.2972]
[1756530592419,0.4981,4369.3,4369.2,0.4998]
[1756530592827,0.4981,4369.3,4368.9,0.2972]
[1756530593018,0.4981,4369.3,4369.0,0.41195]
[1756530593218,0.4981,4369.2,4369.1,0.231]
[1756530593622,0.3046,4369.1,4369.0,0.231]
[1756530593831,0.4981,4369.1,4369.0,0.231]
[1756530594029,0.4981,4369.1,4369.0,0.64295]
[1756530594329,0.4981,4369.1,4369.0,0.7308]
[1756530595125,0.4981,4369.1,4369.0,0.4998]
[1756530595330,0.4981,4369.1,4369.0,0.7308]
[1756530600233,0.4981,4369.4,4369.3,0.2026]
[1756530600433,0.4981,4369.4,4369.3,0.4998]
[1756530601134,0.4981,4369.4,4369.3,0.2026]
[1756530601333,0.1935,4369.4,4369.1,0.5282]
[1756530601634,0.4981,4369.2,4369.1,0.7308]
[1756530604730,0.4981,4369.2,4369.1,0.4998]
[1756530605227,0.3046,4368.7,4368.4,0.2972]
[1756530605432,0.1935,4368.3,4368.2,0.5282]
[1756530605633,0.4981,4368.3,4368.2,0.7308]
[1756530606436,0.4981,4368.3,4368.2,0.4998]
[1756530607434,0.4981,4368.3,4368.2,0.91183]
[1756530607637,0.4981,4368.3,4368.2,0.4998]
[1756530608035,0.19,4368.1,4368.0,3.94]
[1756530608237,0.4758,4368.1,4368.0,3.94]
[1756530608438,0.19,4367.9,4367.8,0.231]
[1756530608635,0.4758,4367.9,4367.8,0.4372]
[1756530608834,0.4758,4367.9,4367.8,0.5012]
[1756530609041,7.62675,4367.9,4367.1,2.04956102]
[1756530609338,0.2858,4367.4,4367.2,0.295]
[1756530609528,0.4758,4367.4,4367.3,0.5012]
[1756530610034,3.2078,4367.9,4367.0,0.5012]
[1756530610035,0.19,4367.1,4367.0,0.5012]
[1756530610235,0.2858,4367.0,4366.8,0.231]
[1756530610441,0.4758,4366.5,4366.4,3.4388]
[1756530610635,0.4758,4366.5,4366.4,3.7338]
[1756530610840,0.4758,4366.5,4366.4,3.2078]
[1756530611037,0.4758,4366.5,4366.4,3.5028]
[1756530611645,0.4758,4366.5,4366.4,3.2078]
[1756530611843,0.19,4366.1,4366.0,0.4372]
[1756530612038,0.4758,4366.1,4366.0,0.5012]
[1756530612240,3.2078,4367.3,4366.0,0.5012]
[1756530612436,0.4758,4367.2,4367.1,0.5012]
[1756530612643,0.4758,4367.7,4367.6,0.5012]
[1756530613246,0.4758,4367.0,4366.9,0.5012]
[1756530613642,0.2858,4367.3,4366.9,0.5012]
[1756530613945,0.19,4367.1,4367.0,0.2062]
[1756530614136,0.2858,4367.6,4366.3,0.4122]
[1756530614450,0.2858,4367.5,4366.4,0.295]
[1756530614639,0.19,4366.5,4366.4,0.5012]
[1756530614840,0.4758,4366.5,4366.4,0.5012]
[1756530616240,0.4758,4367.7,4367.6,0.2062]
[1756530616446,0.4758,4367.7,4366.7,3.61996]
[1756530616647,0.4758,4366.9,4366.8,0.7342]
[1756530616949,0.4758,4367.7,4367.6,0.2062]
[1756530617647,3.2078,4367.8,4367.6,0.2062]
[1756530617648,3.2078,4367.8,4367.7,0.295]
[1756530617948,3.6836,4367.8,4367.7,0.2062]
[1756530618245,0.4758,4366.9,4366.8,0.4022]
[1756530618549,0.19,4366.9,4366.7,3.2078]
[1756530618844,0.4758,4366.8,4366.7,3.2078]
[1756530619446,0.19,4366.8,4366.3,0.233]
[1756530619646,0.19,4366.4,4366.3,0.4392]
[1756530619842,0.4758,4366.4,4366.3,0.7342]
[1756530620744,0.4758,4366.4,4366.3,0.2062]
[1756530620940,0.19,4366.2,4366.1,3.414]
[1756530621142,0.4758,4366.2,4366.1,3.414]
[1756530621344,0.2858,4367.0,4365.6,0.233]
[1756530621545,0.19,4365.7,4365.6,0.7342]
[1756530621853,0.2858,4366.0,4365.7,0.41226]
[1756530622052,0.4758,4366.0,4365.9,3.709]
[1756530622551,0.4758,4366.0,4365.9,0.5012]
[1756530623451,1.23230319,4368.9,4366.1,0.41222]
[1756530623452,0.2858,4366.7,4366.1,0.41222]
[1756530623641,0.233,4367.1,4366.1,0.41222]
[1756530623846,0.19,4366.4,4366.3,0.5012]
[1756530624247,0.4758,4366.4,4366.0,0.295]
[1756530624441,0.233,4367.1,4365.7,0.91346]
[1756530624442,0.2858,4366.1,4365.7,0.91346]
[1756530624648,0.2858,4366.1,4366.0,0.5012]
[1756530624953,0.2858,4367.0,4366.1,0.295]
[1756530625153,3.2078,4367.4,4366.1,0.41222]
[1756530625352,0.5148,4367.3,4366.2,0.295]
[1756530625746,0.229,4367.2,4366.2,0.295]
[1756530625941,0.2858,4367.1,4366.2,0.295]
[1756530626552,0.19,4366.3,4366.2,0.5012]
[1756530626749,0.4758,4366.3,4366.2,0.5012]
[1756530627151,0.4758,4366.3,4366.0,0.233]
[1756530627348,0.2858,4366.2,4366.1,0.2062]
[1756530627544,0.4758,4366.2,4366.1,0.5012]
[1756530627751,0.22901,4367.3,4366.2,0.295]
[1756530627752,0.2858,4367.3,4366.2,0.295]
[1756530628054,0.4758,4366.3,4366.2,0.2062]
[1756530628248,0.4758,4366.3,4365.9,0.295]
[1756530629055,0.4758,4365.7,4365.6,0.7342]
[1756530629256,0.4758,4365.7,4365.6,0.5012]
[1756530629653,0.105,4366.7,4365.3,3.2078]
[1756530629958,0.2858,4365.8,4365.7,0.2062]
[1756530630161,0.2858,4365.8,4365.7,0.5012]
[1756530630650,0.2858,4365.8,4365.3,3.4408]
[1756530630651,0.4758,4365.8,4365.3,3.4408]
[1756530630860,0.4758,4365.4,4365.3,3.414]
[1756530631252,0.4758,4365.4,4365.3,3.2078]
[1756530631852,0.4758,4365.4,4364.8,0.528]
[1756530632052,0.19,4364.9,4364.8,0.5012]
[1756530632246,0.4758,4364.9,4364.8,0.2062]
[1756530632450,0.19,4364.9,4364.5,3.5028]
[1756530632651,0.4758,4364.6,4364.5,3.2078]
[1756530632953,0.4758,4364.6,4364.1,0.295]
[1756530633152,0.4758,4364.5,4364.0,0.295]
[1756530633352,0.4758,4364.5,4364.4,0.2062]
[1756530633653,0.4758,4364.5,4364.4,0.5012]
[1756530637059,0.4758,4364.5,4364.1,0.41241]
[1756530637260,0.19,4364.5,4364.4,0.1951]
[1756530637451,3.2078,4365.4,4364.4,0.4971]
[1756530637660,3.2078,4365.4,4363.5,32.986]
[1756530637661,0.1985,4365.3,4365.2,0.4971]
[1756530637855,0.4839,4365.3,4365.2,0.4971]
[1756530638758,0.4839,4365.3,4364.9,0.41233]
[1756530638960,0.1985,4365.0,4364.9,0.4971]
[1756530639167,0.4839,4365.0,4364.6,0.302]
[1756530639358,0.4839,4365.0,4364.4,0.41238]
[1756530639659,0.4839,4364.5,4364.4,0.90948]
[1756530639860,0.1985,4364.2,4364.1,0.4971]
[1756530640166,0.2854,4365.2,4364.3,0.302]
[1756530640461,0.1985,4364.4,4364.3,0.4971]
[1756530640665,0.1985,4364.1,4364.0,3.2078]
[1756530640958,0.4839,4364.1,4364.0,3.2078]
[1756530641161,0.1985,4364.1,4363.4,3.2078]
[1756530641362,0.1985,4363.5,4363.4,3.4029]
[1756530641554,0.4839,4363.8,4363.7,0.4971]
[1756530642460,0.2854,4364.3,4363.7,0.90954]
[1756530642861,3.2078,4364.4,4363.7,0.90954]
[1756530643061,0.2854,4364.3,4363.7,0.90954]
[1756530643259,0.2854,4364.3,4363.7,0.60754]
[1756530643563,0.4839,4364.3,4364.2,0.1951]
[1756530643762,0.1985,4364.3,4364.2,0.4971]
[1756530644465,0.4839,4364.3,4364.2,0.4971]
[1756530645063,0.4839,4364.3,4364.2,0.1951]
[1756530646260,0.4839,4364.3,4364.2,0.4971]
[1756530648865,0.4839,4364.3,4364.2,0.1951]
[1756530649462,0.2854,4364.2,4363.9,0.41243]
[1756530649769,0.4839,4364.0,4363.9,0.90953]
[1756530651970,0.4839,4364.0,4363.9,0.60753]
[1756530652170,0.4839,4364.0,4363.9,0.90953]
[1756530654868,0.4839,4364.3,4364.2,0.9095]
[1756530657277,0.4839,4364.8,4364.7,0.60745]
[1756530657467,1.07302481,4364.8,4364.7,0.90945]
[1756530657667,1.07302481,4364.8,4364.7,0.60745]
[1756530658770,0.4839,4364.8,4364.7,0.90945]
[1756530658973,0.4839,4365.4,4365.3,0.1951]
[1756530659271,1.0733646,4365.4,4365.3,0.1951]
[1756530660178,1.0733646,4365.4,4365.3,0.4971]
[1756530662372,0.4839,4365.4,4365.3,0.4971]
[1756530665176,0.1985,4365.1,4365.0,0.90942]
[1756530665380,0.4839,4365.1,4365.0,0.90942]
[1756530665582,0.1985,4365.1,4365.0,0.90942]
[1756530666476,0.4839,4365.4,4365.3,0.9094]
[1756530667476,0.5,4365.6,4365.5,0.70768]
[1756530667676,0.5,4365.6,4365.5,0.89628]
[1756530668681,0.5,4365.6,4365.5,0.41228]
[1756530669371,0.5,4365.6,4365.5,0.60088]
[1756530669578,0.5,4365.6,4365.5,0.89628]
[1756530671280,0.5,4365.6,4365.0,0.233]
[1756530671281,0.5,4366.0,4365.9,0.1886]
[1756530671583,0.5,4365.8,4365.7,0.89626]
[1756530672985,3.6395,4366.1,4366.0,0.60083]
[1756530673180,0.5,4366.1,4366.0,0.89623]
[1756530677692,0.1987,4366.3,4366.2,0.60081]
[1756530677991,0.5,4366.3,4366.2,0.41221]
[1756530680287,0.5,4366.3,4366.2,0.89621]
[1756530682992,0.1987,4366.3,4366.2,0.1886]
[1756530683184,0.1987,4366.3,4366.2,0.60081]
[1756530683380,3.7078,4366.6,4366.5,0.60078]
[1756530683586,3.7078,4366.6,4366.5,0.89618]
[1756530685485,0.5,4366.6,4366.5,0.89618]
[1756530686581,0.5,4366.6,4366.5,0.41218]
[1756530688087,0.233,4367.0,4366.3,0.4122]
[1756530688088,0.1987,4366.4,4366.3,0.4122]
[1756530688289,0.5,4366.4,4366.3,0.4122]
[1756530688889,0.5,4366.4,4366.3,0.6008]
[1756530689090,0.5,4366.4,4366.3,0.8962]
[1756530689393,0.5,4366.7,4366.6,0.89617]
[1756530690393,0.5,4366.7,4366.6,0.60077]
[1756530690895,0.5,4366.7,4366.6,0.89617]
[1756530693298,0.5,4366.7,4366.6,0.41217]
[1756530697896,0.5,4366.7,4366.6,0.59867]
[1756530698098,0.5,4366.7,4366.6,0.89597]
[1756530701300,0.5,4366.7,4366.6,0.59867]
[1756530701499,0.5,4366.7,4366.6,0.89597]
[1756530701700,0.5,4366.7,4366.6,0.41217]
[1756530702302,0.5,4366.7,4366.6,0.89597]
[1756530706210,0.233,4367.0,4366.9,0.89595]
[1756530706211,0.2862,4367.0,4366.9,0.89595]
[1756530706503,3.494,4367.1,4367.0,0.2973]
[1756530706711,3.494,4367.1,4367.0,0.4838]
[1756530706902,3.2078,4367.7,4367.6,0.89588]
[1756530707096,3.494,4367.7,4367.6,0.89588]
[1756530707304,3.2078,4367.7,4367.6,0.89588]
[1756530707809,3.494,4367.7,4367.6,0.89588]
[1756530708301,0.4887,4367.7,4367.6,0.89588]
[1756530708507,0.4887,4368.0,4367.9,0.89585]
[1756530708703,0.2862,4367.9,4367.7,0.41207]
[1756530708906,0.4887,4367.8,4367.7,0.89587]
[1756530712912,0.4887,4368.0,4367.9,0.89585]
[1756530714109,0.4887,4368.0,4367.9,0.4838]
[1756530715121,0.2025,4368.0,4367.9,0.4838]
[1756530717018,0.4887,4368.0,4367.9,0.4838]
[1756530719919,0.2025,4367.7,4367.0,3.2078]
[1756530720217,0.4887,4367.7,4367.6,0.4838]
[1756530721913,0.2025,4367.7,4367.6,0.4838]
[1756530722212,0.4887,4368.0,4367.9,0.1865]
[1756530722414,0.4887,4368.0,4367.9,0.4838]
[1756530722814,2.9285,4368.2,4367.9,0.4838]
[1756530723011,3.494,4368.7,4368.2,0.2973]
[1756530723211,3.4103,4368.7,4368.6,0.1865]
[1756530723416,3.6965,4368.7,4368.6,0.4838]
[1756530724311,0.4887,4368.6,4368.5,0.2973]
[1756530724512,0.4887,4368.6,4368.5,0.4838]
[1756530725817,0.2025,4368.6,4368.5,0.4838]
[1756530726821,3.2078,4368.7,4368.5,0.1865]
[1756530727018,3.2078,4368.7,4368.6,0.4877]
[1756530727927,0.4848,4368.8,4368.7,0.4877]
[1756530731520,0.202,4368.4,4368.3,0.4877]
[1756530731721,0.4848,4368.4,4368.3,0.4877]
[1756530732929,3.2078,4369.2,4368.9,0.41195]
[1756530733231,3.2078,4370.3,4370.1,0.4877]
[1756530733430,0.302,4370.2,4370.1,0.4877]
[1756530733631,0.5848,4370.2,4370.1,0.4877]
[1756530734837,0.1,4370.2,4370.1,0.4877]
[1756530741239,3.4098,4371.5,4371.4,0.1867]
[1756530741535,3.4098,4371.5,4370.8,0.534]
[1756530741734,0.2828,4371.4,4370.8,0.301]
[1756530741939,0.4848,4370.9,4370.8,0.4877]
[1756530742135,3.2078,4371.5,4370.8,0.4877]
[1756530742341,0.4848,4371.4,4371.3,0.4877]
[1756530744039,0.202,4371.4,4371.3,0.4877]
[1756530744636,3.2078,4371.5,4371.4,0.4877]
[1756530744840,0.2828,4371.7,4371.5,0.301]
[1756530745142,0.4848,4371.7,4371.6,0.4877]
[1756530745440,3.6926,4372.1,4372.0,0.4877]
[1756530745635,3.6926,4372.1,4371.7,0.233]
[1756530745636,3.4098,4372.1,4371.7,0.233]
[1756530745839,0.4848,4371.9,4371.7,0.233]
[1756530746042,3.6926,4372.1,4372.0,0.4877]
[1756530746236,3.4098,4372.1,4372.0,0.4877]
[1756530746441,0.202,4372.6,4372.5,0.1867]
[1756530746637,0.4848,4372.6,4372.5,0.4877]
[1756530747737,0.202,4372.6,4372.5,0.4877]
[1756530747937,0.2828,4372.9,4372.5,0.4877]
[1756530748140,0.2828,4373.0,4372.4,0.234]
[1756530748441,0.4848,4373.0,4372.9,0.4877]
[1756530748836,0.4848,4373.0,4372.1,3.19360413]
[1756530749146,0.2828,4372.9,4372.2,0.234]
[1756530749340,0.4848,4372.9,4372.8,0.1867]
[1756530749641,0.202,4372.5,4372.4,0.4207]
[1756530749944,0.4848,4372.5,4372.4,0.4207]
[1756530750848,0.4848,4372.5,4372.4,0.1867]
[1756530751042,0.4848,4372.5,4372.4,0.4731]
[1756530751748,0.2828,4373.0,4372.1,0.2864]
[1756530752551,0.4848,4373.0,4372.9,0.1867]
[1756530752850,0.4848,4373.0,4372.9,0.4731]
[1756530753049,0.4848,4373.0,4372.9,0.1867]
[1756530753843,0.4848,4373.0,4372.3,0.141]
[1756530754042,0.4848,4373.0,4372.4,0.2864]
[1756530755255,0.4848,4373.0,4372.2,0.233]
[1756530755444,0.4848,4373.0,4372.3,0.2864]
[1756530756352,0.4848,4373.0,4372.9,0.4731]
[1756530756551,3.2078,4373.1,4372.9,0.4731]
[1756530756744,3.2078,4373.1,4372.6,0.41161]
[1756530756745,3.2078,4373.1,4373.0,0.4731]
[1756530756956,0.2828,4373.4,4373.3,0.1957]
[1756530757150,0.2828,4373.4,4373.3,0.4829]
[1756530757552,3.2078,4374.3,4373.5,0.1957]
[1756530757753,2.1023,4374.2,4374.1,0.4829]
[1756530758051,1.8,4374.2,4374.1,0.4829]
[1756530758444,2.2894,4374.2,4374.1,0.4829]
[1756530759148,0.3023,4374.1,4373.6,0.2866]
[1756530759447,1.8,4374.2,4371.4,10.46333102]
[1756530759448,0.4894,4373.6,4373.5,0.4823]
[1756530760046,0.3023,4373.5,4372.9,0.2866]
[1756530760241,0.3023,4373.5,4373.0,0.234]
[1756530760449,0.1871,4373.1,4373.0,0.7163]
[1756530761050,0.3023,4373.8,4373.1,0.2866]
[1756530761253,0.1871,4373.2,4373.1,0.4823]
[1756530761553,0.3023,4373.8,4373.2,0.2866]
[1756530761753,3.2078,4373.9,4373.2,0.4823]
[1756530761754,0.4894,4373.3,4373.2,0.4823]
[1756530761948,0.4894,4373.3,4373.2,0.7163]
[1756530762146,0.1871,4373.3,4373.2,0.4823]
[1756530762352,0.4894,4373.3,4373.2,0.4823]
[1756530763744,0.1871,4373.0,4372.9,0.4823]
[1756530763950,0.4894,4373.0,4372.9,0.7163]
[1756530764149,0.4894,4373.0,4372.9,0.4823]
[1756530764652,3.2078,4373.4,4373.3,0.2866]
[1756530764955,3.2078,4373.4,4373.3,0.4823]
[1756530765149,3.6972,4373.4,4373.3,0.4823]
[1756530765348,0.3023,4373.9,4373.3,0.4823]
[1756530765951,0.1871,4373.4,4373.3,0.4823]
[1756530766257,0.4894,4373.4,4373.3,0.4823]
[1756530767252,0.1871,4373.4,4372.9,0.2866]
[1756530767459,0.4894,4372.9,4372.8,0.7163]
[1756530767750,0.3023,4372.9,4372.8,0.7163]
[1756530768148,0.4894,4372.9,4372.8,0.7163]
[1756530768350,0.4894,4372.9,4372.8,0.4823]
[1756530768653,0.4894,4372.9,4372.8,0.1957]
[1756530768952,0.3023,4372.8,4372.5,0.5206]
[1756530769160,0.4894,4372.6,4372.5,0.7163]
[1756530771856,0.4894,4372.6,4372.5,0.4823]
[1756530772046,0.4894,4372.6,4372.5,0.7163]
[1756530775053,0.1871,4372.2,4372.1,0.4823]
[1756530775256,0.4894,4372.2,4372.1,0.7163]
[1756530775452,0.4894,4372.2,4372.1,0.4823]
[1756530775652,0.4894,4372.2,4372.1,0.7163]
[1756530776562,3.2078,4372.9,4371.8,0.4823]
[1756530776563,0.4894,4371.9,4371.8,0.4823]
[1756530776758,0.4894,4371.9,4371.8,0.7163]
[1756530776958,0.4894,4371.9,4371.8,0.4823]
[1756530777252,0.4894,4371.9,4371.8,0.1957]
[1756530777452,1.23230319,4373.5,4371.7,3.2078]
[1756530777453,0.3023,4371.8,4371.7,0.234]
[1756530777652,0.4894,4371.8,4371.3,0.2866]
[1756530777853,0.1871,4371.5,4371.2,3.2078]
[1756530778054,0.58253149,4371.4,4370.1,3.4944]
[1756530778361,3.2078,4371.9,4371.0,0.1957]
[1756530778657,1.07151868,4371.8,4371.7,0.1957]
[1756530779062,1.07151868,4371.8,4371.5,0.2866]
[1756530779364,0.4894,4371.8,4371.5,0.2866]
[1756530779764,0.4894,4371.8,4371.1,3.2078]
[1756530780059,0.1871,4371.8,4371.1,0.234]
[1756530780259,0.4894,4371.2,4371.1,0.7163]
[1756530780463,0.4894,4371.2,4371.1,0.4823]
[1756530780670,0.1871,4371.2,4371.1,0.4823]
[1756530780867,0.4894,4371.2,4371.1,0.4823]
[1756530781366,0.4894,4371.2,4371.1,0.1957]
[1756530781567,0.4894,4371.2,4371.0,0.234]
[1756530783266,0.4894,4371.2,4370.7,0.2866]
[1756530784164,3.2078,4371.4,4370.5,3.2078]
[1756530784355,3.2078,4371.4,4370.5,3.4418]
[1756530784356,0.4894,4370.6,4370.5,3.4418]
[1756530784558,0.4894,4370.6,4370.5,3.6375]
[1756530784766,0.4894,4370.6,4370.5,3.9241]
[1756530784964,0.4894,4370.6,4370.5,3.6901]
[1756530785354,0.1871,4370.6,4369.9,0.2866]
[1756530785568,0.4894,4370.3,4370.2,0.4823]
[1756530786568,3.4418,4371.4,4370.3,0.2866]
[1756530786773,0.3023,4371.3,4370.3,0.2866]
[1756530787061,0.3023,4371.3,4370.5,0.2861]
[1756530787368,0.2919,4371.3,4370.6,0.2861]
[1756530787967,0.2919,4371.3,4370.7,0.235]
[1756530788176,0.197,4370.9,4370.8,0.4719]
[1756530788468,0.4889,4370.9,4370.8,0.4719]
[1756530788861,0.4889,4370.9,4370.8,0.7069]
[1756530789361,0.197,4370.9,4370.8,0.7069]
[1756530789562,0.4889,4370.9,4370.8,0.7069]
[1756530791067,0.2919,4370.8,4370.3,0.2861]
[1756530791265,0.235,4372.0,4370.3,0.2861]
[1756530791266,0.2919,4371.3,4370.6,0.2861]
[1756530792263,0.2919,4371.3,4370.7,0.235]
[1756530792468,0.4889,4370.8,4370.7,0.4719]
[1756530792660,0.197,4370.8,4370.6,0.235]
[1756530792861,0.4889,4370.7,4370.6,0.235]
[1756530793168,0.4889,4370.7,4370.6,0.7069]
[1756530795471,0.4889,4370.7,4370.6,0.4719]
[1756530795769,0.197,4370.7,4370.6,0.1858]
[1756530796361,0.197,4370.7,4370.3,3.2078]
[1756530796561,0.197,4370.4,4370.3,3.6797]
[1756530796761,0.4889,4370.4,4370.3,3.6797]
[1756530797170,0.4889,4370.4,4370.3,3.9147]
[1756530798564,0.2919,4371.3,4370.5,0.2861]
[1756530798875,0.4889,4371.3,4371.2,0.4719]
[1756530799365,0.197,4371.3,4370.8,0.235]
[1756530799673,0.4889,4371.0,4370.9,0.4719]
[1756530800661,0.4889,4370.5,4370.4,3.6797]
[1756530800864,0.4889,4370.5,4370.4,3.9147]
[1756530801863,0.4889,4370.5,4370.4,3.6797]
[1756530802064,0.4889,4370.5,4370.4,3.9147]
[1756530802872,0.4889,4370.5,4370.4,0.7069]
[1756530803273,0.4889,4370.5,4370.4,0.4208]
[1756530804267,0.4889,4370.5,4370.4,0.1858]
[1756530804468,0.4889,4370.5,4370.4,0.4208]
[1756530805077,0.197,4370.1,4370.0,0.1858]
[1756530805273,0.197,4370.1,4370.0,0.4208]
[1756530805468,0.197,4370.1,4370.0,0.1858]
[1756530805670,0.4889,4370.1,4370.0,0.4208]